bitfinex-derivatives/quotes_ETHF0:USTF0_20251203
["timestamp","ask_amount","ask_price","bid_price","bid_amount"]
[1764743702395,3.17226973,3080.0,3079.9,1.1882]
[1764743702595,0.723183,3080.0,3079.9,2.367]
[1764743703006,1.932683,3080.0,3079.9,2.367]
[1764743703206,0.723183,3080.0,3079.9,2.367]
[1764743705108,1.818783,3080.0,3079.9,2.367]
[1764743705298,0.723183,3080.0,3079.9,2.367]
[1764743705498,1.818783,3080.0,3079.9,2.367]
[1764743707009,2.3351,3079.8,3079.7,4.2917]
[1764743707208,2.3351,3079.6,3079.5,2.357]
[1764743707507,3.05341327,3079.6,3079.5,1.0839]
[1764743708596,3.05341327,3079.6,3079.2,3.2078]
[1764743708797,2.3351,3079.3,3079.2,5.5648]
[1764743709203,3.05384078,3079.3,3079.2,3.2078]
[1764743709709,43.85384078,3079.3,3079.2,3.2078]
[1764743711007,43.1351,3079.3,3079.2,4.2917]
[1764743711311,43.85342012,3079.3,3079.2,4.2917]
[1764743712409,43.85342012,3079.3,3079.2,3.2078]
[1764743713106,43.85342012,3079.3,3079.2,4.2917]
[1764743713312,43.85342012,3079.3,3079.2,5.5648]
[1764743713809,43.85342012,3079.3,3079.2,4.2917]
[1764743714605,43.85342012,3079.3,3079.2,3.2078]
[1764743717217,2.3351,3079.0,3078.9,2.35927592]
[1764743717517,2.3351,3079.0,3078.9,1.08617592]
[1764743717715,3.05356543,3079.0,3078.9,1.08617592]
[1764743718408,2.3351,3079.0,3078.9,1.08617592]
[1764743718608,2.3351,3079.0,3078.9,2.35927592]
[1764743719212,3.72925939,3079.0,3078.9,0.00227592]
[1764743719518,3.72925939,3079.0,3078.9,1.08617592]
[1764743720017,3.72925939,3079.0,3078.9,0.00227592]
[1764743720319,2.3351,3078.1,3078.0,4.27507754]
[1764743720515,2.3351,3078.1,3077.3,1.71987601]
[1764743720516,0.5748,3078.0,3077.6,3.2078]
[1764743720717,2.3351,3077.7,3077.6,2.357]
[1764743720917,1.81400297,3077.7,3077.6,2.357]
[1764743721214,1.09906053,3077.7,3077.6,2.36033602]
[1764743721412,2.33856053,3077.7,3077.6,2.36033602]
[1764743721813,2.33856053,3077.7,3077.6,1.08723602]
[1764743722519,2.33856053,3077.7,3077.6,0.00333602]
[1764743723216,2.3351,3077.4,3077.3,3.2078]
[1764743723415,2.3351,3076.9,3076.8,5.5648]
[1764743723726,2.3351,3076.9,3076.8,4.2917]
[1764743723923,1.0956,3076.9,3076.8,5.5648]
[1764743724222,1.0956,3076.9,3076.8,5.5679225]
[1764743724610,40.8,3077.4,3076.8,5.5679225]
[1764743724924,1.0956,3077.1,3077.0,3.0099]
[1764743725225,40.8,3077.4,3077.3,2.357]
[1764743725817,40.8,3077.4,3076.8,3.2109225]
[1764743726016,0.3743,3077.5,3076.8,3.2109225]
[1764743726325,0.00346053,3077.7,3077.6,2.357]
[1764743727027,0.00486973,3078.0,3077.8,2.357]
[1764743727226,0.00486973,3078.0,3077.8,5.5648]
[1764743727628,6.2186,3079.0,3078.9,1.0839]
[1764743727829,6.2186,3079.0,3078.3,3.2078]
[1764743728122,3.2104447,3079.0,3078.9,2.357]
[1764743728317,6.2212447,3079.0,3078.9,1.0839]
[1764743728918,6.2212447,3079.0,3078.6,0.00486973]
[1764743729329,6.2212447,3079.0,3078.9,1.0839]
[1764743729529,3.0134447,3079.0,3078.9,1.0839]
[1764743729732,1.7739447,3079.0,3078.9,2.357]
[1764743730027,2.3351,3078.9,3078.8,2.357]
[1764743730630,1.7739447,3079.0,3078.9,2.357]
[1764743730829,3.0134447,3079.0,3078.6,0.00486973]
[1764743731630,1.0956,3078.7,3078.6,2.36186973]
[1764743731927,2.3351,3078.7,3078.6,2.36186973]
[1764743732123,2.3351,3078.7,3078.6,1.08876973]
[1764743732534,0.6783447,3079.0,3078.9,2.357]
[1764743732724,1.7739447,3079.0,3078.9,2.357]
[1764743732926,1.0956,3078.7,3078.6,2.36186973]
[1764743733632,0.6783447,3079.0,3078.6,2.36186973]
[1764743734020,2.315,3078.7,3078.6,0.00486973]
[1764743734230,2.315,3078.1,3078.0,3.2078]
[1764743734726,2.315,3078.1,3078.0,4.3912]
[1764743735034,2.315,3078.1,3078.0,3.2078]
[1764743735532,2.315,3077.7,3077.6,3.2078]
[1764743737035,2.315,3077.7,3077.1,3.2078]
[1764743737237,2.31986973,3077.7,3077.1,3.2078]
[1764743738337,1.0961,3077.2,3077.1,5.5673]
[1764743738737,2.2615,3077.2,3077.1,4.3829]
[1764743739052,2.2615,3077.2,3077.1,3.2078]
[1764743739428,2.9404,3077.5,3077.4,1.1751]
[1764743739628,2.9404,3077.5,3077.1,3.2078]
[1764743739828,1.0961,3077.2,3077.1,5.5673]
[1764743740227,0.6789,3077.5,3077.1,5.5673]
[1764743740633,1.0961,3077.2,3077.1,2.3595]
[1764743740838,2.2615,3077.2,3077.1,2.3595]
[1764743741138,4.3039,3077.4,3077.3,2.3595]
[1764743741640,5.4693,3077.4,3077.3,2.3595]
[1764743742430,3.2078,3077.4,3077.3,2.3595]
[1764743743531,4.3039,3077.4,3077.3,2.3595]
[1764743743835,4.3039,3077.4,3076.8,0.0031225]
[1764743743836,5.4693,3077.4,3076.8,0.0031225]
[1764743744135,1.0961,3076.9,3076.8,2.3626225]
[1764743744341,2.2615,3076.9,3076.8,2.3626225]
[1764743744737,3.2078,3077.4,3077.3,2.3595]
[1764743745041,0.00486973,3077.7,3077.6,2.3595]
[1764743748829,1.10096973,3077.7,3077.6,2.3595]
[1764743749036,2.26636973,3077.7,3077.6,2.3595]
[1764743750042,1.10096973,3077.7,3077.6,2.3595]
[1764743750546,2.26636973,3077.7,3077.6,2.3595]
[1764743750846,2.26636973,3077.7,3077.6,1.1751]
[1764743751041,1.775,3077.5,3077.4,2.52194]
[1764743751342,2.2615,3077.4,3077.3,5.5673]
[1764743751650,1.775,3077.5,3077.4,2.3595]
[1764743752136,2.26636973,3077.7,3077.6,2.3595]
[1764743752332,2.26636973,3077.7,3077.6,1.1751]
[1764743752646,2.26636973,3077.7,3077.3,3.2078]
[1764743753346,2.26636973,3077.7,3077.6,2.3595]
[1764743753546,2.26636973,3077.7,3077.6,1.1751]
[1764743754259,2.26636973,3077.7,3077.6,2.3595]
[1764743754459,2.26636973,3077.7,3077.6,1.1751]
[1764743755055,2.26636973,3077.7,3077.6,2.3595]
[1764743755252,0.00486973,3077.7,3077.6,2.3595]
[1764743755455,2.26636973,3077.7,3077.6,2.3595]
[1764743755761,1.0961,3077.4,3077.3,5.72974]
[1764743756261,0.00486973,3077.7,3077.3,5.72974]
[1764743756449,1.0961,3077.4,3077.3,5.72974]
[1764743756653,2.2615,3077.4,3077.3,4.3829]
[1764743757057,2.2615,3077.4,3077.3,3.2078]
[1764743757560,5.4693,3077.4,3076.8,11.2423925]
[1764743757761,5.4693,3077.4,3076.8,3.3733925]
[1764743759063,4.3039,3077.4,3077.3,2.3595]
[1764743759259,3.2078,3077.4,3077.3,2.3595]
[1764743759465,4.3039,3077.4,3077.3,2.3595]
[1764743759859,3.2078,3077.4,3077.3,2.3595]
[1764743760462,4.3039,3077.4,3077.3,2.3595]
[1764743761259,3.2078,3077.4,3077.3,2.3595]
[1764743761667,5.4693,3077.4,3077.3,2.3595]
[1764743761864,5.4693,3077.4,3076.9,0.16246]
[1764743762272,5.4693,3077.4,3077.3,1.1751]
[1764743762567,2.2615,3076.9,3076.8,4.3860225]
[1764743762872,2.2615,3076.9,3076.8,5.5704225]
[1764743763870,2.2615,3076.9,3076.8,2.3626225]
[1764743764271,2.2615,3076.9,3076.8,1.1782225]
[1764743764471,2.2615,3076.9,3076.8,0.0031225]
[1764743764671,1.0961,3076.9,3076.8,2.2038225]
[1764743765067,2.2151,3076.9,3076.8,2.2038225]
[1764743765462,2.2151,3076.9,3076.8,1.0094225]
[1764743765673,2.2151,3076.9,3076.8,0.0031225]
[1764743767773,2.1347,3076.6,3076.5,0.16249]
[1764743767970,2.1347,3076.6,3076.5,1.16879]
[1764743768170,2.7573,3076.5,3076.4,5.4085]
[1764743768369,3.8867,3077.0,3076.4,5.4085]
[1764743768562,2.85191112,3076.9,3076.8,2.2007]
[1764743768765,0.71956728,3076.9,3076.8,2.20313212]
[1764743768960,0.00235616,3076.9,3076.8,2.20313212]
[1764743769172,2.13705616,3076.9,3076.8,2.20313212]
[1764743769371,2.13705616,3076.9,3076.8,1.00873212]
[1764743769572,1.01805616,3076.9,3076.8,2.20313212]
[1764743770658,1.01805616,3076.9,3076.4,3.2078]
[1764743770659,2.7573,3076.5,3076.4,3.2078]
[1764743770863,3.47442687,3076.5,3075.9,3.2078]
[1764743771067,0.62746973,3076.5,3076.3,3.2078]
[1764743771271,2.1347,3076.4,3076.3,3.2078]
[1764743771663,2.1347,3076.4,3076.3,4.21674205]
[1764743771860,0.00486973,3076.5,3076.4,2.2007]
[1764743772575,0.00486973,3076.5,3076.4,12.65419]
[1764743772774,1.01805616,3076.9,3076.8,2.2007]
[1764743773073,2.13705616,3076.9,3076.8,2.2007]
[1764743773376,0.00235616,3076.9,3076.8,2.2007]
[1764743773673,2.1347,3076.8,3076.7,3.2078]
[1764743773975,2.1347,3076.6,3076.5,1.17365973]
[1764743774269,2.1347,3076.6,3076.5,0.00486973]
[1764743774969,0.00235616,3076.9,3076.5,2.20556973]
[1764743775170,2.1347,3076.6,3076.5,1.01116973]
[1764743775372,2.1347,3076.6,3076.5,4.21896973]
[1764743775667,1.0157,3076.6,3076.5,5.41336973]
[1764743776375,0.00235616,3076.9,3076.8,2.2007]
[1764743779380,2.13705616,3076.9,3076.6,0.16248]
[1764743779683,0.00235616,3076.9,3076.8,2.2007]
[1764743781077,2.13705616,3076.9,3076.8,1.0063]
[1764743781679,1.0157,3076.7,3076.6,2.36318]
[1764743782081,2.13705616,3076.9,3076.8,2.2007]
[1764743782483,2.13705616,3076.9,3076.8,1.0063]
[1764743783069,1.01805616,3076.9,3076.8,2.2007]
[1764743783789,2.13705616,3076.9,3076.8,2.2007]
[1764743784080,2.13705616,3076.9,3076.8,1.0063]
[1764743784784,2.13705616,3076.9,3076.5,3.21266973]
[1764743785877,1.01805616,3076.9,3076.8,1.0063]
[1764743786183,2.13705616,3076.9,3076.8,1.0063]
[1764743786380,2.13705616,3076.9,3076.8,2.2007]
[1764743787877,2.1347,3076.8,3076.7,3.2078]
[1764743788588,1.01805616,3076.9,3076.8,2.2007]
[1764743788776,2.13705616,3076.9,3076.8,2.2007]
[1764743789686,1.01805616,3076.9,3076.8,2.2007]
[1764743790084,0.00235616,3076.9,3076.8,2.2007]
[1764743790288,0.00486973,3077.2,3077.1,2.2007]
[1764743790483,4.2235,3077.8,3077.1,13.71159188]
[1764743790681,1.73285157,3077.7,3077.2,0.16245]
[1764743790880,1.0157,3077.7,3077.3,0.16244]
[1764743791088,1.0157,3077.7,3077.6,3.2078]
[1764743791286,0.004189,3077.7,3077.6,3.2078]
[1764743791686,1.019889,3077.7,3077.6,3.2078]
[1764743792187,0.004189,3077.7,3077.6,3.2078]
[1764743792581,2.138889,3077.7,3077.6,3.2078]
[1764743792780,2.85575495,3077.7,3077.6,3.2078]
[1764743793286,1.73675495,3077.7,3077.6,3.2078]
[1764743793487,1.019889,3077.7,3077.6,3.2078]
[1764743793680,2.011689,3077.7,3077.6,3.2078]
[1764743794085,1.019889,3077.7,3077.6,3.2078]
[1764743794381,1.6652,3077.5,3077.3,0.16245]
[1764743794580,2.0368,3077.4,3077.3,0.16245]
[1764743794781,0.6202,3077.5,3077.3,0.16245]
[1764743795186,0.004189,3077.7,3077.3,0.16245]
[1764743795383,2.040989,3077.7,3077.6,3.2078]
[1764743799489,2.75707868,3077.7,3077.6,3.2078]
[1764743799890,2.6651,3077.5,3077.4,1.0128]
[1764743800391,2.6651,3077.5,3077.0,3.8224]
[1764743800590,1.0603,3077.1,3077.0,5.8706]
[1764743800890,2.0698,3077.1,3077.0,4.2206]
[1764743801290,2.0698,3077.1,3077.0,5.256]
[1764743802093,0.5953,3077.5,3077.0,5.8706]
[1764743802283,2.0698,3077.1,3077.0,5.256]
[1764743802885,2.0698,3077.1,3077.0,2.0482]
[1764743803089,2.0698,3077.1,3076.8,3.2078]
[1764743803391,2.0698,3076.9,3076.8,3.2078]
[1764743803791,2.0698,3076.6,3076.5,2.05306973]
[1764743804296,2.0698,3076.6,3076.5,0.00486973]
[1764743804888,2.0698,3076.6,3076.5,1.01766973]
[1764743805487,40.8,3076.9,3076.8,1.0128]
[1764743805693,41.51736847,3076.9,3076.8,1.0128]
[1764743805893,1.0603,3076.6,3076.5,2.66766973]
[1764743806294,2.0698,3076.6,3076.5,2.66766973]
[1764743806595,1.0603,3076.6,3076.5,2.66766973]
[1764743806792,40.8,3076.9,3076.8,2.0482]
[1764743807095,0.71732118,3076.9,3076.8,2.0482]
[1764743807293,5.2776,3077.2,3077.1,1.0128]
[1764743807498,46.79489484,3077.2,3077.1,2.0482]
[1764743807800,46.79489484,3077.2,3077.1,1.0128]
[1764743808297,2.6651,3077.0,3076.9,1.0128]
[1764743808498,2.0698,3077.0,3076.9,2.0482]
[1764743808694,3.2078,3077.2,3077.1,2.0482]
[1764743808905,5.99487235,3077.2,3077.1,2.0482]
[1764743810303,1.0603,3076.6,3076.5,2.66766973]
[1764743810499,2.6651,3077.0,3076.9,1.0128]
[1764743810797,3.38236107,3077.0,3076.9,2.0482]
[1764743812191,1.77756107,3077.0,3076.9,2.0482]
[1764743812493,1.0603,3077.0,3076.9,2.0482]
[1764743812689,5.2776,3077.2,3077.1,2.0482]
[1764743812885,5.99468942,3077.2,3077.1,2.0482]
[1764743813501,3.92488942,3077.2,3077.1,2.0482]
[1764743813794,3.2078,3077.2,3077.1,2.0482]
[1764743813999,44.0078,3077.6,3077.5,2.0482]
[1764743814300,44.72477325,3077.6,3077.5,2.0482]
[1764743815495,44.72477325,3077.6,3077.5,2.6628]
[1764743815701,3.92477325,3077.6,3077.5,2.6628]
[1764743815902,3.2078,3077.6,3077.5,2.6628]
[1764743816700,4.2681,3077.6,3077.5,2.6628]
[1764743816903,3.2078,3077.6,3077.5,2.6628]
[1764743817200,4.2681,3077.6,3077.5,2.6628]
[1764743817698,3.2078,3077.6,3077.5,2.6628]
[1764743817891,0.004189,3077.7,3077.6,2.0482]
[1764743818291,5.45156924,3078.0,3077.9,2.0482]
[1764743818497,3.2078,3078.4,3078.3,2.0482]
[1764743818699,5.2776,3078.8,3078.7,1.0128]
[1764743818997,1.79363858,3078.8,3078.7,2.0482]
[1764743819196,0.01669202,3078.8,3078.7,2.0482]
[1764743819392,2.07259106,3078.8,3078.7,2.05164282]
[1764743819592,1.06309106,3078.8,3078.7,2.05164282]
[1764743819800,0.00279106,3078.8,3078.7,2.05164282]
[1764743820196,0.00486973,3079.1,3079.0,2.6628]
[1764743820395,3.8031,3080.0,3079.9,1.0128]
[1764743820600,6.58872453,3080.0,3079.5,3.8224]
[1764743820804,1.77612453,3079.9,3079.8,2.0482]
[1764743821305,1.77612453,3079.9,3079.5,3.8224]
[1764743821306,2.0698,3079.6,3079.5,4.2206]
[1764743821695,2.07352266,3079.9,3079.8,2.0482]
[1764743821898,1.06402266,3079.9,3079.8,2.0482]
[1764743823099,1.30382266,3079.9,3079.8,1.3887]
[1764743823299,0.00372266,3079.9,3079.8,2.4039]
[1764743824002,1.30382266,3079.9,3079.8,2.4039]
[1764743824308,0.00372266,3079.9,3079.8,2.4039]
[1764743824699,2.1084,3080.1,3080.0,3.209]
[1764743824899,2.1084,3080.1,3080.0,6.4168]
[1764743825099,0.00486973,3080.2,3080.1,2.4039]
[1764743825308,1.30496973,3080.2,3080.1,2.4039]
[1764743825604,2.35616973,3080.2,3080.1,2.4039]
[1764743825904,0.00751697,3080.2,3080.1,2.4039]
[1764743826405,1.30761697,3080.2,3080.1,2.4039]
[1764743827211,0.00751697,3080.2,3080.1,2.4039]
[1764743827902,0.5953,3081.5,3080.8,2.4039]
[1764743828098,1.3001,3081.2,3081.1,5.6117]
[1764743828297,2.3513,3081.2,3081.1,5.6117]
[1764743828515,43.1513,3081.2,3081.1,5.6117]
[1764743828804,4.1511,3081.4,3080.7,3.2078]
[1764743829117,3.10809083,3081.4,3081.3,2.4039]
[1764743829411,3.10809083,3081.4,3081.1,3.2078]
[1764743829412,2.3513,3081.2,3081.1,1.3887]
[1764743830211,42.60799083,3081.4,3081.3,2.4039]
[1764743830503,42.60799083,3081.4,3081.3,1.3887]
[1764743830909,4.15929083,3081.4,3081.3,1.3887]
[1764743831109,4.15929083,3081.4,3081.3,2.4039]
[1764743831315,1.80799083,3081.4,3081.3,2.4039]
[1764743832005,0.00819083,3081.4,3081.3,2.4039]
[1764743833303,2.35949083,3081.4,3081.3,2.4039]
[1764743833508,1.3001,3081.1,3081.0,6.4168]
[1764743833803,2.3513,3081.1,3081.0,4.5965]
[1764743834008,2.3513,3081.1,3081.0,5.6117]
[1764743834410,2.35949083,3081.4,3081.3,1.3887]
[1764743834610,2.35949083,3081.4,3081.3,2.4039]
[1764743834611,0.00819083,3081.4,3081.3,2.4039]
[1764743840921,2.35949083,3081.4,3081.3,1.3887]
[1764743841125,1.3001,3081.1,3081.0,5.77395]
[1764743841320,1.3001,3081.1,3081.0,5.6117]
[1764743841517,2.3513,3081.1,3081.0,5.6117]
[1764743841724,2.3513,3081.1,3081.0,2.4039]
[1764743841915,1.3001,3081.1,3081.0,2.4039]
[1764743842717,0.00819083,3081.4,3081.3,1.3887]
[1764743842928,1.30829083,3081.4,3081.3,2.4039]
[1764743843129,0.00819083,3081.4,3081.3,2.4039]
[1764743843529,1.30829083,3081.4,3081.3,2.4039]
[1764743844122,2.35949083,3081.4,3081.3,1.3887]
[1764743844724,0.00819083,3081.4,3081.3,2.4039]
[1764743845817,2.35949083,3081.4,3081.3,2.4039]
[1764743846428,1.3001,3081.1,3081.0,6.4168]
[1764743846625,2.3513,3081.1,3081.0,5.6117]
[1764743847231,1.30829083,3081.4,3081.3,2.4039]
[1764743847822,2.35949083,3081.4,3081.3,2.4039]
[1764743848028,2.35949083,3081.4,3081.3,1.3887]
[1764743848233,2.35949083,3081.4,3081.3,2.4039]
[1764743848931,1.30829083,3081.4,3081.3,2.4039]
[1764743849138,0.00819083,3081.4,3081.3,2.4039]
[1764743850027,6.4006,3082.5,3082.4,2.4039]
[1764743850227,7.10118271,3082.5,3082.4,2.4039]
[1764743850424,6.25968271,3082.5,3082.4,2.4039]
[1764743851032,3.91196735,3082.5,3082.4,2.4039]
[1764743851229,0.70416735,3082.5,3082.4,2.4039]
[1764743851634,0.00358464,3082.5,3082.4,2.4039]
[1764743852026,0.00324652,3082.8,3082.7,2.4039]
[1764743852231,0.00324652,3082.8,3082.7,5.6117]
[1764743852736,2.35454652,3082.8,3082.7,4.5965]
[1764743852942,0.00689772,3082.8,3082.7,5.6117]
[1764743853938,1.35539772,3082.8,3082.7,5.6117]
[1764743854140,3.38063502,3082.8,3082.7,3.2078]
[1764743854834,3.38063502,3082.8,3082.7,4.5044]
[1764743856632,3.38063502,3082.8,3082.7,5.8317]
[1764743856832,3.38063502,3082.8,3082.7,4.5044]
[1764743857032,1.2974,3082.5,3082.4,2.58046973]
[1764743857237,0.7006373,3082.5,3082.4,2.58046973]
[1764743857438,3.3146348,3082.7,3082.6,2.5756]
[1764743857642,3.3146348,3082.7,3082.6,1.3093]
[1764743857835,3.3881,3082.5,3082.4,0.00486973]
[1764743858142,4.0891348,3082.5,3082.4,2.58046973]
[1764743858331,1.9984348,3082.5,3082.4,2.58046973]
[1764743858843,0.7010348,3082.5,3082.4,2.58046973]
[1764743859042,1.30429772,3082.8,3082.7,2.5756]
[1764743859244,2.0054219,3082.8,3082.7,2.5756]
[1764743859844,0.7080219,3082.8,3082.7,2.5756]
[1764743860540,3.3216219,3082.8,3082.7,1.3093]
[1764743860843,2.6136,3082.6,3082.5,2.5756]
[1764743861037,0.70112418,3082.6,3082.5,3.4034]
[1764743861344,1.2974,3082.5,3082.4,2.58046973]
[1764743861642,0.70112418,3082.5,3082.4,2.58046973]
[1764743861833,1.30429772,3082.8,3082.7,2.5756]
[1764743862141,0.70812852,3082.8,3082.7,2.5756]
[1764743862533,0.00689772,3082.8,3082.7,2.5756]
[1764743862837,44.0078,3083.4,3083.3,1.3093]
[1764743863039,44.70782016,3083.4,3083.3,2.5756]
[1764743863435,3.90782016,3083.4,3083.3,2.5756]
[1764743863643,3.91165561,3083.4,3083.3,2.57938401]
[1764743863842,6.52525561,3083.4,3083.3,2.57938401]
[1764743864236,3.91165561,3083.4,3083.3,2.57938401]
[1764743864435,0.70385561,3083.4,3083.3,2.57938401]
[1764743865031,0.00383545,3083.4,3083.3,2.57938401]
[1764743866239,3.2078,3083.8,3083.3,2.57938401]
[1764743866240,4.5052,3083.8,3083.7,2.5756]
[1764743866441,0.69914706,3083.8,3083.7,2.5756]
[1764743866832,1.99654706,3083.8,3083.7,2.5756]
[1764743867244,1.99984651,3083.8,3083.7,2.5756]
[1764743867931,3.31604651,3083.8,3083.7,2.5756]
[1764743868135,3.31604651,3083.8,3083.7,1.3093]
[1764743868346,2.6136,3083.6,3083.5,5.7834]
[1764743869049,2.6136,3083.6,3083.5,3.2078]
[1764743869345,2.61689945,3083.8,3083.7,2.5756]
[1764743869546,3.3154011,3083.8,3083.7,2.5756]
[1764743869748,3.3154011,3083.8,3083.7,1.3093]
[1764743871039,1.3162,3083.6,3083.3,0.00378401]
[1764743871350,2.6136,3083.4,3083.3,2.57938401]
[1764743872051,2.61689945,3083.8,3083.7,2.5756]
[1764743872246,3.31537648,3083.8,3083.7,1.3093]
[1764743872446,1.2974,3083.4,3083.3,2.57938401]
[1764743872645,0.00329945,3083.8,3083.3,2.57938401]
[1764743872949,3.31209283,3083.7,3083.6,2.5756]
[1764743873247,2.61689945,3083.8,3083.7,2.5756]
[1764743873846,2.61689945,3083.8,3083.7,1.3093]
[1764743874067,1.2974,3083.6,3083.5,5.7834]
[1764743874247,1.30069945,3083.8,3083.7,2.5756]
[1764743874645,2.61689945,3083.8,3083.7,2.5756]
[1764743875153,1.30069945,3083.8,3083.7,2.5756]
[1764743875652,2.61689945,3083.8,3083.7,2.5756]
[1764743875850,2.6136,3083.6,3083.5,5.7834]
[1764743876149,2.6136,3083.6,3083.5,2.5756]
[1764743876450,2.6136,3083.4,3083.3,1.31308401]
[1764743877155,2.6136,3083.4,3083.3,2.57938401]
[1764743877851,0.00329945,3083.8,3083.3,2.57938401]
[1764743878045,0.70003792,3083.7,3083.3,2.57938401]
[1764743878248,2.6136,3083.7,3083.6,2.5756]
[1764743878451,1.2974,3083.7,3083.6,2.5756]
[1764743878652,2.6136,3083.7,3083.6,2.5756]
[1764743879154,3.31423643,3083.7,3083.6,2.5756]
[1764743879354,3.31423643,3083.7,3083.6,1.3093]
[1764743879551,2.6136,3083.4,3083.3,1.31308401]
[1764743879756,2.6136,3083.4,3083.3,2.57938401]
[1764743879953,2.61689945,3083.8,3083.7,1.3093]
[1764743880152,3.31753623,3083.8,3083.7,2.5756]
[1764743880350,3.31753623,3083.8,3083.7,1.3093]
[1764743882355,3.31753623,3083.8,3083.5,3.2078]
[1764743882356,2.6136,3083.6,3083.5,3.2078]
[1764743882556,2.6136,3083.6,3083.5,5.7834]
[1764743882949,2.6136,3083.6,3083.5,2.5756]
[1764743883454,2.5543,3083.4,3083.3,1.20618401]
[1764743883760,1.168,3083.4,3083.3,2.54718401]
[1764743883956,2.5543,3083.4,3083.3,2.54718401]
[1764743884259,1.168,3083.4,3083.3,2.54718401]
[1764743884461,0.00329945,3083.8,3083.3,2.54718401]
[1764743884759,2.5543,3083.4,3083.3,1.20618401]
[1764743885058,2.5543,3083.4,3083.3,2.54718401]
[1764743885454,1.168,3083.4,3083.3,2.54718401]
[1764743886059,2.5543,3083.4,3083.3,2.54718401]
[1764743886260,1.168,3083.4,3083.3,2.54718401]
[1764743886755,2.5543,3083.4,3083.3,2.54718401]
[1764743887253,1.168,3083.4,3083.3,2.54718401]
[1764743887759,2.5543,3083.4,3083.3,0.00378401]
[1764743888152,1.168,3083.4,3083.3,2.54718401]
[1764743888553,2.5543,3083.4,3083.3,2.54718401]
[1764743889249,1.168,3083.4,3083.3,2.54718401]
[1764743889456,2.5543,3083.4,3083.3,2.54718401]
[1764743890758,1.168,3083.4,3083.3,2.54718401]
[1764743890963,2.5543,3083.4,3083.3,1.20618401]
[1764743891352,1.168,3083.4,3083.3,2.54718401]
[1764743891557,2.55759945,3083.8,3083.7,1.2024]
[1764743891861,3.26002763,3083.8,3083.7,1.2024]
[1764743892260,3.26002763,3083.8,3083.7,2.5434]
[1764743893165,2.5543,3083.4,3083.3,2.54718401]
[1764743893462,3.25672818,3083.4,3083.3,1.20618401]
[1764743893663,3.25672818,3083.4,3083.3,0.00378401]
[1764743894460,3.25672818,3083.4,3083.3,1.20618401]
[1764743894865,3.25672818,3083.4,3083.3,2.54718401]
[1764743896065,3.25672818,3083.4,3083.3,1.20618401]
[1764743896257,3.25672818,3083.4,3083.3,0.00378401]
[1764743903058,3.25672818,3083.4,3083.3,2.54718401]
[1764743903278,3.25672818,3083.4,3083.3,1.20618401]
[1764743904671,3.25672818,3083.4,3083.3,0.00378401]
[1764743905868,1.87042818,3083.4,3083.3,2.54718401]
[1764743906175,3.25672818,3083.4,3083.3,0.00378401]
[1764743911780,2.5543,3082.9,3082.8,5.7512]
[1764743912267,2.5543,3082.9,3082.8,3.2078]
[1764743912670,2.5543,3082.9,3082.8,3.21123371]
[1764743912869,3.25778024,3082.9,3082.8,3.21123371]
[1764743913477,3.25778024,3082.9,3082.8,4.41363371]
[1764743913679,0.70348024,3082.9,3082.8,5.65783371]
[1764743914181,1.83238024,3082.9,3082.8,5.65783371]
[1764743914783,0.70348024,3082.9,3082.8,5.65783371]
[1764743915688,3.03538024,3082.9,3082.8,5.65783371]
[1764743916085,1.83238024,3082.9,3082.8,5.65783371]
[1764743916781,3.03538024,3082.9,3082.8,3.21123371]
[1764743918280,3.03538024,3082.9,3082.8,4.36293371]
[1764743918588,3.03538024,3082.9,3082.8,3.21123371]
[1764743919189,3.03538024,3082.9,3082.8,4.36293371]
[1764743919388,3.03538024,3082.9,3082.8,1.15513371]
[1764743919691,3.03538024,3082.9,3082.8,2.39933371]
[1764743919889,1.83238024,3082.9,3082.8,2.39933371]
[1764743920390,0.70348024,3082.9,3082.8,2.39933371]
[1764743921081,1.83238024,3082.9,3082.8,2.39933371]
[1764743921283,3.03538024,3082.9,3082.8,2.39933371]
[1764743921786,3.03538024,3082.9,3082.8,1.08603371]
[1764743921987,3.03538024,3082.9,3082.8,2.17123371]
[1764743922688,6.24318024,3082.9,3082.8,1.08603371]
[1764743922879,6.24318024,3082.9,3082.8,0.00343371]
[1764743923488,6.24318024,3082.9,3082.8,1.08603371]
[1764743923788,6.24318024,3082.9,3082.8,0.00343371]
[1764743925382,6.24318024,3082.9,3082.8,1.08603371]
[1764743925890,6.24318024,3082.9,3082.8,2.17123371]
[1764743927986,6.24318024,3082.9,3082.8,0.00343371]
[1764743928194,2.8275,3082.5,3082.4,0.00486973]
[1764743928393,3.53098024,3082.5,3082.4,0.00486973]
[1764743929191,3.53098024,3082.5,3082.4,0.00882234]
[1764743930390,2.8809,3082.0,3081.9,5.3756]
[1764743930585,2.8275,3082.5,3082.4,1.0826]
[1764743930789,3.53573768,3082.5,3082.4,1.0826]
[1764743930988,1.1132,3082.1,3082.0,2.5109]
[1764743931394,1.1132,3082.1,3082.0,2.51389977]
[1764743931688,2.2233,3082.1,3082.0,2.17079977]
[1764743933091,2.2233,3082.1,3082.0,1.08559977]
[1764743933292,2.2233,3082.1,3082.0,0.00299977]
[1764743933495,2.9310194,3082.1,3082.0,0.00299977]
[1764743934198,2.2233,3082.1,3082.0,0.00299977]
[1764743934795,2.2233,3082.1,3082.0,1.08559977]
[1764743935391,2.2233,3082.1,3082.0,0.00299977]
[1764743935995,2.93075718,3082.1,3082.0,0.00299977]
[1764743939196,2.93075718,3082.1,3082.0,1.08559977]
[1764743939501,2.93075718,3082.1,3082.0,0.00299977]
[1764743940402,2.93075718,3082.1,3082.0,2.17079977]
[1764743940906,2.93075718,3082.1,3082.0,2.51389977]
[1764743941093,1.82065718,3082.1,3082.0,2.51389977]
[1764743941405,2.22816973,3082.4,3082.3,2.1678]
[1764743941704,2.93542735,3082.4,3082.3,2.1678]
[1764743942403,2.93542735,3082.4,3082.3,1.0826]
[1764743942901,1.1132,3082.1,3082.0,0.00299977]
[1764743943105,2.2233,3082.1,3082.0,0.00299977]
[1764743943306,2.07496973,3082.4,3082.3,1.0315]